Cogmind - Beta 17 @@@ ROGUE MODE // 2026.06.25 @ 22:35:24 Player: retrohackman Result: Destroyed by 7Q-2QE(R) with Subdweller Machine Gun Performance ------------- Evolutions (0) 0 Regions Visited (2) 400 Robots Destroyed (42) 210 Value Destroyed (659) 659 Prototype IDs (4) 80 Alien Tech Used (0) 0 Bonus (0) 0 TOTAL SCORE: 1349 Bonus ------- None Cogmind --------- Core Integrity 0/250 Matter 240/300 Energy 160/160 System Corruption 1% Temperature Cool (0) Movement Rolling (215) Ox9 Location -10/Subcaves Parts ------- > --- POWER (1) -------- Light Nuclear Core > --- PROPULSION (2) --- Light Treads Wheel > --- UTILITY (2) ------ Huge Storage Unit Seismic Detector > --- WEAPON (2) ------- Shotgun Shotgun > --- INVENTORY (25) --- Ion Engine Ion Engine Ion Engine Ion Engine Light Ion Engine Aluminum Leg Aluminum Leg Aluminum Leg Aluminum Leg Wheel Wheel Compact Wheel Heat Sink Heat Sink Small Storage Unit Small Storage Unit Medium Storage Unit Medium Storage Unit Large Storage Unit Large Storage Unit Structural Scanner Small Laser Small Laser Shotgun Peak State ------------ > --- POWER ------------ Light Nuclear Core > --- PROPULSION ------- Light Treads Wheel > --- UTILITY ---------- Huge Storage Unit Seismic Detector > --- WEAPON ----------- Shotgun Shotgun > --- INVENTORY -------- Ion Engine Ion Engine Ion Engine Light Ion Engine Aluminum Leg Wheel Wheel Compact Wheel Heat Sink Small Storage Unit Small Storage Unit Medium Storage Unit Medium Storage Unit Large Storage Unit Large Storage Unit Structural Scanner Seismic Detector Small Laser Shotgun [Rating: 13] Favorites ----------- Power Light Nuclear Core Engine Ion Engine Power Core Light Nuclear Core Propulsion Aluminum Leg Treads Light Treads Leg Aluminum Leg Wheel Wheel Utility Small Storage Unit Device Seismic Detector Storage Small Storage Unit Weapon Shotgun Energy Gun Small Laser Ballistic Gun Shotgun Special Weapon Mining Laser Build | -11 -10 -10 ------- Run | Yrd Mat Sub Slots Evolved . | . . . Power . | . . . Propulsion . | . . . Utility . | . . . Weapon . | . . . Parts Attached 27 | 8 19 . Power 5 | 1 4 . Engine 3 | 1 2 . Core 2 | . 2 . Reactor . | . . . Propulsion 9 | 3 6 . Treads 1 | . 1 . Leg 2 | 1 1 . Wheel 6 | 2 4 . Hover . | . . . Flight . | . . . Utility 5 | 2 3 . Device 3 | 1 2 . Storage 2 | 1 1 . Processor . | . . . Hackware . | . . . Protection . | . . . Artifact . | . . . Weapon 8 | 2 6 . Energy Gun 3 | 1 2 . Energy Cannon . | . . . Ballistic Gun 3 | 1 2 . Ballistic Cannon . | . . . Launcher . | . . . Special Weapon 2 | . 2 . Impact Weapon . | . . . Slashing Weapon . | . . . Piercing Weapon . | . . . Special Melee Weapon . | . . . Unidentified Prototypes . | . . . Parts Lost 7 | . 7 . Power 1 | . 1 . Propulsion 2 | . 2 . Utility 1 | . 1 . Weapon 3 | . 3 . Highest Loss Streak 4 | . 4 . To Critical Strikes . | . . . Average Backups 12 | 5 13 24 Power 2 | . 2 5 Propulsion 4 | 2 4 7 Utility 4 | . 4 9 Weapon 1 | 1 1 3 Tool/Special . | . . . Unused Backups 25 | 2 4 19 Power 5 | . 1 4 Propulsion 6 | . 2 4 Utility 11 | 2 . 9 Weapon 3 | . 1 2 Tool/Special . | . . . Average Slot Usage (%) 97 | . 97 100 Engine 5 | . 5 . Core 8 | . 8 14 Treads 7 | . 7 14 Leg 10 | . 10 . Wheel 9 | . 9 14 Device 14 | . 14 14 Storage 14 | . 14 14 Energy Gun 9 | . 9 . Ballistic Gun 15 | . 15 28 Special Weapon 1 | . 1 . Peak Build Rating 13 | 9 13 13 Average Rating 10 | 5 10 13 On Entrance 7 | . 9 13 Avg Prop Armor Cover (%) 10 | 6 10 . Naked Turns . | . . . Heaviest Build 92 | 12 92 92 Greatest Support 20 | 16 20 10 Greatest Overweight (x) 9 | 1 9 9 Average Overweight (x) 3 | . 4 9 Largest Inventory Capacity 25 | 8 25 25 Average Capacity 15 | 7 16 25 Most Carried 24 | 8 24 24 Average Carried 12 | 5 13 24 Final Capacity 25 | 8 25 25 Final Carried 24 | 8 24 24 Class Distribution -------------------- 100% | Mutant Dominant Class ---------------- Mutant | -10/Materials Mutant | -10/Subcaves Resources | -11 -10 -10 ----------- Run | Yrd Mat Sub Matter Collected 808 | 352 456 . Remotely . | . . . Salvage Created 1286 | 178 1108 . Parts 93 | 12 81 . Haulers Intercepted 1 | . 1 . Recyclers Shooed 2 | 1 1 . Parts Field Recycled . | . . . Retrieved Matter . | . . . Parts Self-Destructed . | . . . Prevented . | . . . Parts Restored . | . . . Kills | -11 -10 -10 ------- Run | Yrd Mat Sub Combat Hostiles Destroyed 16 | . 16 . Guns 15 | . 15 . Cannons 1 | . 1 . Classes Destroyed 9 | 3 6 . Worker 8 | 1 7 . Builder 5 | . 5 . Tunneler 4 | 3 1 . Hauler 1 | . 1 . Recycler 4 | 1 3 . Operator 1 | . 1 . Watcher 3 | . 3 . Swarmer 3 | . 3 . Grunt 13 | . 13 . Best Kill Streak 4 | 2 4 . Combat Bots Only 3 | . 3 . Max Kills in Single Turn 2 | 1 2 . Gunslinging 1 | . 1 . Exploded . | . . . Melee . | . . . Uniques/NPCs Destroyed . | . . . Combat | -11 -10 -10 -------- Run | Yrd Mat Sub Hostile Shots Fired 117 | . 116 1 Missed 35 | . 35 . Hits 82 | . 81 1 Projectile 82 | . 81 1 Damage Taken 1144 | . 1125 19 Core 259 | . 240 19 Absorbed by Shields . | . . . Regen/Repaired (Parts) 49 | . 49 . Core Remaining (%) 100 | 100 . . Volleys Fired 128 | 24 104 . Largest 2 | 2 2 . Hottest 140 | 60 140 . Shots Fired 220 | 26 194 . Gun 214 | 26 188 . Cannon . | . . . Launcher . | . . . Special 6 | . 6 . Kinetic 94 | 24 70 . Thermal 82 | 2 80 . Explosive . | . . . Electromagnetic 44 | . 44 . Robot Hit Streak 14 | 6 14 . Robot Miss Streak 4 | 4 3 . Penetration Max . | . . . Secondary Targets 3 | . 3 . Max Gunslinging Chain 1 | . 1 . Shots Hit Robots 136 | 16 120 . Core Hits 61 | 6 55 . Critical Kills . | . . . Critical Parts Destroyed . | . . . Critical Strikes . | . . . Melee Attacks . | . . . Impact . | . . . Slashing . | . . . Piercing . | . . . Sneak Attacks . | . . . Combat Hostiles . | . . . Follow-up Attacks . | . . . Damage Inflicted 1883 | 198 1685 . Guns 1731 | 198 1533 . Cannons . | . . . Explosions 56 | . 56 . Melee . | . . . Ramming . | . . . Kinetic 774 | 175 599 . Thermal 716 | 23 693 . Explosive . | . . . Electromagnetic 393 | . 393 . Impact . | . . . Slashing . | . . . Piercing . | . . . Highest Corruption 1 | . 1 1 Average Corruption 1 | . 1 1 Corruption Purged . | . . . Corruption Blocked . | . . . Effects 8 | . 8 . Message Errors 2 | . 2 . Matter Fused 2 | . 2 . Heat Flow Errors 1 | . 1 . Energy Discharges 1 | . 1 . Data Loss (major) 1 | . 1 . Misfires 1 | . 1 . Overload Shots . | . . . Overflow Damage . | . . . Projectiles . | . . . Explosions . | . . . Melee . | . . . Knockbacks . | . . . Impact . | . . . Kinetic . | . . . Secondary . | . . . Self-Inflicted Damage 13 | . 13 . Shots 1 | . 1 . Rammed . | . . . Targets Rammed . | . . . Kicked . | . . . Crushed . | . . . Highest Temperature 201 | . 201 . Average Temperature 54 | . 54 . Received Heat Transfer 579 | . 579 . Siege Activations . | . . . Martial Activations . | . . . Shielding Activations . | . . . Robots Disrupted . | . . . Combat Hostiles . | . . . Robots Corrupted 1 | . 1 . Combat Hostiles . | . . . Parts Fried 2 | . 2 . Impact Corruptions . | . . . Robots Melted . | . . . Combat Hostiles . | . . . Parts Melted . | . . . Heat Transferred 1575 | 50 1525 . Parts Sabotaged . | . . . Parts Stolen . | . . . Parts Stripped . | . . . Power Chain Reactions 2 | . 2 . Alert | -11 -10 -10 ------- Run | Yrd Mat Sub Maximum Alert Level 1 | . 1 . Low Security (%) 97 | 100 97 . Level 1 2 | . 2 . Level 2 . | . . . Level 3 . | . . . Level 4 . | . . . Level 5 . | . . . High Security . | . . . Max Security . | . . . Peak Influence 219 | 5 219 . Initial 3 | . 3 . Average 83 | 1 91 . Influence Increases 614 | 25 589 . Destroy 0b10 Robot/C 320 | . 320 . Destroy 0b10 Robot/NC 130 | 25 105 . Destroy Leader 88 | . 88 . Successful Hack 23 | . 23 . Disable Machine 15 | . 15 . Destroy Structure 8 | . 8 . Lose Combat Pursuer 30 | . 30 . Influence Decreases 575 | 20 518 37 Entered New Map 39 | . 2 37 Time Decay 466 | 20 446 . Lost Part 70 | . 70 . Squads Dispatched 6 | . 6 . Investigation 4 | . 4 . Extermination . | . . . Reinforcement 2 | . 2 . Assault . | . . . Garrison . | . . . Intercept . | . . . Searches Triggered . | . . . Construction Impeded . | . . . Haulers Reinforced . | . . . Active Scanning Responses . | . . . Cargo Convoy Interrupts . | . . . Stealth | -11 -10 -10 --------- Run | Yrd Mat Sub Distress Signals 1 | . 1 . Communications Jammed . | . . . Distress Signals . | . . . Times Spotted 29 | . 27 2 Peak Tracking Total 4 | . 4 2 Tactical Retreats 2 | . 2 . Traps | -11 -10 -10 ------- Run | Yrd Mat Sub Traps Triggered 6 | . 6 . Indirectly . | . . . Trap Hack Attempts . | . . . Triggered . | . . . Disarmed . | . . . Reprogrammed . | . . . Reused . | . . . Traps Extracted . | . . . Installed . | . . . Triggered . | . . . Machines | -11 -10 -10 ---------- Run | Yrd Mat Sub Machines Disabled 1 | . 1 . Max in Single Turn 1 | . 1 . Machines Repaired . | . . . Machines Dismantled . | . . . Machines Sabotaged . | . . . Overloaded Fab Kills . | . . . Hacking | -11 -10 -10 --------- Run | Yrd Mat Sub Machines Accessed 7 | . 7 . Terminals 4 | . 4 . Fabricators . | . . . Repair Stations 1 | . 1 . Recycling Units 2 | . 2 . Scanalyzers . | . . . Garrison Access . | . . . Total Hacks 25 | . 25 . Successful 17 | . 17 . Failed 8 | . 8 . Catastrophic 2 | . 2 . Database Lockouts . | . . . Manual . | . . . Terminals 17 | . 17 . Fabricators . | . . . Repair Stations 2 | . 2 . Recycling Units 6 | . 6 . Scanalyzers . | . . . Garrison Access . | . . . Terminal Hacks 10 | . 10 . Record 3 | . 3 . Prototype ID Bank 2 | . 2 . Branch Access Points 1 | . 1 . Emergency Access Points 1 | . 1 . Repair Station Index 1 | . 1 . Transport Status 1 | . 1 . Registered Components 1 | . 1 . Fabricator Hacks . | . . . Repair Station Hacks 2 | . 2 . Scan Component 1 | . 1 . Repair 1 | . 1 . Recycling Unit Hacks 5 | . 5 . Recycle Component 2 | . 2 . Process 3 | . 3 . Scanalyzer . | . . . Garrison Access Hacks . | . . . Unauthorized Hacks . | . . . Terminals . | . . . Fabricators . | . . . Repair Stations . | . . . Recycling Units . | . . . Scanalyzers . | . . . Garrison Access . | . . . Data Cores Recovered . | . . . Used . | . . . Hacking Detections 7 | . 7 . Full Trace Events 6 | . 6 . Feedback Events 1 | . 1 . Corruption 1 | . 1 . Feedback Blocked . | . . . Robot Schematics Acquired . | . . . Robots Built . | . . . Authchips . | . . . Time . | . . . Total Robot Build Rating . | . . . Part Schematics Acquired . | . . . Parts Built . | . . . Authchips . | . . . Time . | . . . Total Part Build Rating . | . . . Part Studies Acquired . | . . . Parts Repaired 1 | . 1 . Time 26 | . 26 . Parts Recycled 2 | . 2 . Recycled Matter 266 | . 266 . Retrieved Matter . | . . . Retrieved Components . | . . . Parts Scanalyzed . | . . . Part Schematics Acquired . | . . . Parts Damaged . | . . . Bothacking | -11 -10 -10 ------------ Run | Yrd Mat Sub Used RIF Installer . | . . . Robots Hacked . | . . . Non-combat . | . . . Combat . | . . . Robot Hacks Applied . | . . . Relay Couplers Released . | . . . Fabnet Peak Effective % . | . . . Robots Rewired . | . . . Allies Hacked . | . . . Hacks Repelled . | . . . Allies | -11 -10 -10 -------- Run | Yrd Mat Sub Total Allies . | . . . Largest Group . | . . . Highest-Rated Group . | . . . Highest-Rated Ally . | . . . Total Orders . | . . . Ally Attacks . | . . . Total Damage . | . . . Kills . | . . . Allies Corrupted . | . . . Allies Melted . | . . . Intel | -11 -10 -10 ------- Run | Yrd Mat Sub Active Infowar (turns) 1815 | 43 1769 3 Terrain 754 | 43 711 . Seismic 1061 | . 1058 3 Robot Analysis Total . | . . . Derelict Logs Recovered . | . . . Drone Launches . | . . . Drone Recoveries . | . . . Exploration | -11 -10 -10 ------------- Run | Yrd Mat Sub Turns Passed 1946 | 172 1771 3 Spaces Moved 901 | 97 803 1 Core 20 | 15 5 . Treads 26 | . 26 . Legs 261 | 51 210 . Wheels 594 | 31 562 1 Hover . | . . . Flight . | . . . Fastest Speed 50 | 50 80 215 Average Speed 149 | 102 154 215 Slowest Speed 215 | 190 215 215 Overloaded Moves . | . . . Propulsion Burnouts . | . . . Robots Hopped . | . . . Potential Cave-ins . | . . . Cave-ins Triggered . | . . . Exploration Rate (%) 31 | 4 90 1 Regions Visited 2 Branch Regions 1 Pre-discovered Areas . | . . . Known Exits Taken . | . . . Unknown Exits Taken 2 | 1 1 . Scrap Searched . | . . . Spaces Dug . | . . . Terrain Destroyed 7 | . 7 . Melee . | . . . Projectile . | . . . AOE 7 | . 7 . Terrain Rammed . | . . . Walls Destroyed . | . . . Machines Disabled . | . . . Actions | -11 -10 -10 --------- Run | Yrd Mat Sub Total 1270 | 142 1127 1 Wait 154 | . 154 . Move 899 | 96 802 1 Hop . | . . . Pick Up 43 | 11 32 . Fast Attach 13 | 6 7 . Attach 11 | 1 10 . Detach . | . . . Swap 11 | 1 10 . Drop 11 | 3 8 . Fire 128 | 24 104 . Melee . | . . . Ram . | . . . Kick . | . . . Crush . | . . . Escape Stasis . | . . . Rewire . | . . . Trap . | . . . Miscellaneous . | . . . Route ------- -11/Scrapyard -10/Materials (discovered 6 exits: [*Mat x3] / *Min x2 / [*Sub]) -10/Subcaves History --------- Turn | Location | Event 15 | -11/Scrapyard | Discovered new exit (range 15) 173 | -11/Scrapyard | Entered Materials 290 | -10/Materials | Identified exit to Mines 315 | -10/Materials | Build established: Mutant 575 | -10/Materials | Discovered new exit (range 11) 736 | -10/Materials | Discovered new exit (range 12) 874 | -10/Materials | Repaired Sml. Laser 932 | -10/Materials | Lost 3 parts (1p1u1w) 937 | -10/Materials | Core integrity fell below 50% 977 | -10/Materials | Lost 4 parts (2n2w) 1396 | -10/Materials | Discovered new exit (range 8) 1580 | -10/Materials | Core integrity fell below 20% 1921 | -10/Materials | Discovered new exit (range 13) 1944 | -10/Materials | Entered Subcaves 1945 | -10/Subcaves | Approached by a straggling Scientist 1947 | -10/Subcaves | Ambushed by Subdwellers from Twisted Machinery 1947 | -10/Subcaves | Destroyed by 7Q-2QE(R) with Subdweller Machine Gun Last Messages --------------- U-05 Engineer builds a Wall. System corrupted: Heat flow error (+158). Acquired 7 matter. Acquired 3 matter. R-06 Scavenger collects Med. Matter Pod. Triggered Alarm Trap. An alarm sounds. ALERT: Alarm triggered, dispatching investigation squad. T-07 Excavator is excavating. U-05 Engineer destroyed. T-07 Excavator is excavating. U-05 Engineer lays Concrete. EXIT=FOUND T-07 Excavator is excavating. LOCATION=UNKNOWN AMBIENT_HEAT=-10 GOAL=ESCAPE K9-Q30(c): "Thank the algorithms! I was beginning to lose hope I'd never make it past all the Subs lurking out here." 7Q-2QE(R) emerges from the Twisted Machinery. Map ----- +----------------------------------------------------+ | ?????????????????????????????????????????????????? | | ?????????????????????????????????????????????????? | | ?????????????????????????????????????????????????? | | ?????????????????????????????????????????????????? | | ?????????????????????????????????????????????????? | | ?????????????????????????????????????????????????? | | ?????????????????????????????????????????????????? | | ?????????????????????????????????????????????????? | | ?????????????????????????????????????????????????? | | ?????????????????????????????????????????????????? | | ?????????????????????????????????????????????????? | | ?????????????????????????????????????????????????? | | ?????????????????????????????????????????????????? | | ??????????????????????? ?????????????????????????? | | ??????????????????????? ?????????????????????????? | | ??????????????????????? ""???????????????????????? | | ??????????????????????? ""???????????????????????? | | ??????????????????????? "" ?????????????????????? | | ??????????????????????? "" ?????????????????????? | | ??????????????????????? ""??????????????????????? | | ??????????????????????## "??????????????????????? | | ???????????????"" ??### ##?????????????????????? | | ???????????????" #"" " c#?????????????????????? | | ??????????????"" """" #?????????????????????? | | ??????????????" "" "##?????????????????????? | | ????????????????### #" "@ #?????????????????????? | | ?????????????????????# ""R #?????????????????????? | | ?????????????????????# " "R ????????????????????? | | ?????????????????????# ## ???????????????????? | | ?????????????????????# ?? ??????????????????? | | ?????????????????????# ??## ????????????????? | | ????????????????????? ???? "???????????????? | | ???????????????????? ?????ss"""#??????????????? | | ???????????????????##%? ?????######??????????????? | | ????????????????????#?# ?????????????????????????? | | ??????????????????????? ?????????????????????????? | | ?????????????????????????????????????????????????? | | ?????????????????????????????????????????????????? | | ?????????????????????????????????????????????????? | | ?????????????????????????????????????????????????? | | ?????????????????????????????????????????????????? | | ?????????????????????????????????????????????????? | | ?????????????????????????????????????????????????? | | ?????????????????????????????????????????????????? | | ?????????????????????????????????????????????????? | | ?????????????????????????????????????????????????? | | ?????????????????????????????????????????????????? | | ?????????????????????????????????????????????????? | | ?????????????????????????????????????????????????? | | ?????????????????????????????????????????????????? | +----------------------------------------------------+ Best States ------------- Heat Dissipation 25 Energy Generation 14 Energy Capacity 250 Matter Stores 300 Matter Capacity 300 Sight Range 16 Terrain Scan Range 16 Terrain Scan Density 10 Evasion (%) 55 Recoil Reduction 1 Item Schematics ----------------- None Robot Schematics ------------------ None Fabricated ------------ Nothing Repaired ---------- Sml. Laser | 30% | -10/Materials Studied --------- None Alien Tech Used ----------------- None Achievements -------------- None Challenges ------------ None Game ------ Seed ExpertTacticalAutominer Manual? 0 Play Time 00:13:20 Cumulative 61.1 hours Start 2026.06.25 @ 22:21:58 End 2026.06.25 @ 22:35:24 Sessions 1 Manual Loads 0 Difficulty Rogue Special Mode None Game No. 30 Rogue 13 Adventurer 12 Explorer 5 Win Type - Total 1 Types 1/0/0/0/0/0/0/0/0/0 Lore% 6 Gallery% 19 Achievement% 19 Wizard Run 0 Options --------- Layout 0 ASCII 0 Keyboard 0 Movement Mouse Keybinds 0 Fullscreen 1 Font 18/X11Bold Map View 76x50 Zoom Use 0% Tactical HUD 0 Map Filters NONE Filters NONE Steam 1 RUN: 81ccd7b8-d428-4b9c-9adb-2634618cc36f